Cogmind - Beta 13 @@@ ROGUE MODE // 2024.06.04 @ 15:36:16 Player: Trantor Result: Self-destructed Performance ------------- Evolutions (2) 1000 Regions Visited (5) 1000 Robots Destroyed (17) 85 Value Destroyed (380) 380 Prototype IDs (26) 520 Alien Tech Used (0) 0 Bonus (300) 300 TOTAL SCORE: 3285 Bonus ------- Aligned with FarCom 300 Cogmind --------- Core Integrity 490/550 Matter 205/300 Energy 160/160 System Corruption 0% Temperature Cool (9) Movement Treading (240) Ox1 Location -8/Materials Parts ------- > --- POWER (1) -------- Light Nuclear Core > --- PROPULSION (4) --- Light Treads Light Treads Light Treads > --- UTILITY (4) ------ Improved Heat Sink Huge Storage Unit > --- WEAPON (2) ------- Light Cannon Light Cannon > --- INVENTORY (25) --- Ion Engine Ion Engine Light Ion Engine Light Nuclear Core Aluminum Leg Aluminum Leg Aluminum Leg Aluminum Leg Aluminum Leg Carbon-fiber Leg Carbon-fiber Leg Wheel Compact Wheel Heat Sink Small Storage Unit Large Battery (200) Large Matter Pod (150) Sensor Array Medium Laser Light Assault Rifle Light Cannon Grenade Launcher Datajack Field Lobotomy Kit (5) Makeshift Spear Peak State ------------ > --- POWER ------------ Light Nuclear Core > --- PROPULSION ------- Light Treads Light Treads Light Treads Light Treads > --- UTILITY ---------- Improved Heat Sink Huge Storage Unit > --- WEAPON ----------- Light Cannon Light Cannon > --- INVENTORY -------- Ion Engine Ion Engine Light Ion Engine Light Nuclear Core Aluminum Leg Aluminum Leg Aluminum Leg Aluminum Leg Aluminum Leg Aluminum Leg Carbon-fiber Leg Wheel Compact Wheel Heat Sink Small Storage Unit Large Battery Large Matter Pod Sensor Array Medium Laser Light Assault Rifle Light Cannon Grenade Launcher Datajack Field Lobotomy Kit Makeshift Spear [Rating: 17] Favorites ----------- Power Light Nuclear Core Engine Ion Engine Power Core Light Nuclear Core Propulsion Light Treads Treads Light Treads Leg Aluminum Leg Utility Huge Storage Unit Device Improved Heat Sink Storage Huge Storage Unit Weapon Light Cannon Energy Gun Medium Laser Ballistic Cannon Light Cannon Launcher Grenade Launcher Build | -11 -10 -10 -10 -9 -8 ------- Run | Yrd Mat Min Exi Min Mat Slots Evolved 4 | . . . . . 4 Power . | . . . . . . Propulsion 2 | . . . . . 2 Utility 2 | . . . . . 2 Weapon . | . . . . . . Parts Attached 19 | . 14 . . 1 4 Power 2 | . 1 . . . 1 Engine . | . . . . . . Core 2 | . 1 . . . 1 Reactor . | . . . . . . Propulsion 5 | . 3 . . . 2 Treads 5 | . 3 . . . 2 Leg . | . . . . . . Wheel . | . . . . . . Hover . | . . . . . . Flight . | . . . . . . Utility 2 | . 2 . . . . Device 1 | . 1 . . . . Storage 1 | . 1 . . . . Processor . | . . . . . . Hackware . | . . . . . . Protection . | . . . . . . Artifact . | . . . . . . Weapon 10 | . 8 . . 1 1 Energy Gun . | . . . . . . Energy Cannon . | . . . . . . Ballistic Gun . | . . . . . . Ballistic Cannon 7 | . 6 . . . 1 Launcher 3 | . 2 . . 1 . Special Weapon . | . . . . . . Impact Weapon . | . . . . . . Slashing Weapon . | . . . . . . Piercing Weapon . | . . . . . . Special Melee Weapon . | . . . . . . Unidentified Prototypes . | . . . . . . Parts Lost 1 | . . . . . 1 Power . | . . . . . . Propulsion 1 | . . . . . 1 Utility . | . . . . . . Weapon . | . . . . . . Highest Loss Streak 1 | . . . . . 1 To Critical Strikes . | . . . . . . Average Slot Usage (%) 97 | . 96 100 100 100 80 Engine 3 | . 7 . . . . Core 10 | . 6 14 14 14 9 Treads 28 | . 27 28 28 28 35 Device 11 | . 9 14 14 14 9 Storage 14 | . 15 14 14 14 9 Ballistic Cannon 21 | . 25 28 28 14 16 Launcher 5 | . 1 . . 13 1 Naked Turns . | . . . . . . Heaviest Build 96 | 14 96 92 92 92 92 Greatest Support 80 | 20 40 40 40 40 80 Greatest Overweight (x) 4 | . 4 2 2 2 1 Average Overweight (x) 1 | . 1 2 2 2 1 Largest Inventory Capacity 25 | . 25 25 25 25 25 Average Capacity 24 | . 24 25 25 25 25 Most Carried 25 | . 24 24 25 25 25 Average Carried 20 | . 14 24 24 24 24 Final Capacity 25 | 8 25 25 25 25 25 Final Carried 25 | 6 24 24 25 25 25 Class Distribution -------------------- 100% | Mutant Dominant Class ---------------- Mutant | -10/Materials Mutant | -10/Mines Mutant | -10/Exiles Mutant | -9/Mines Mutant | -8/Materials Resources | -11 -10 -10 -10 -9 -8 ----------- Run | Yrd Mat Min Exi Min Mat Matter Collected 772 | 192 407 . . 137 36 Remotely . | . . . . . . Salvage Created 380 | . 265 . . 79 36 Parts 17 | . 8 . . 7 2 Haulers Intercepted 2 | . 2 . . . . Recyclers Shooed . | . . . . . . Parts Field Recycled . | . . . . . . Retrieved Matter . | . . . . . . Parts Self-Destructed . | . . . . . . Prevented . | . . . . . . Kills | -11 -10 -10 -10 -9 -8 ------- Run | Yrd Mat Min Exi Min Mat Combat Hostiles Destroyed 14 | . 7 . . 6 1 Cannons 7 | . 4 . . 2 1 AOE 7 | . 3 . . 4 . Classes Destroyed 4 | . 4 . . . . Hauler 2 | . 2 . . . . Recycler 1 | . 1 . . . . Swarmer 7 | . 3 . . 4 . Grunt 7 | . 4 . . 2 1 Best Kill Streak 4 | . 3 . . 4 1 Combat Bots Only 4 | . 3 . . 4 1 Max Kills in Single Turn 3 | . 2 . . 3 1 Gunslinging . | . . . . . . Exploded 3 | . 1 . . 3 . Melee . | . . . . . . Uniques/NPCs Destroyed . | . . . . . . Combat | -11 -10 -10 -10 -9 -8 -------- Run | Yrd Mat Min Exi Min Mat Hostile Shots Fired 74 | . 25 . . 17 32 Missed 21 | . 7 . . 4 10 Damage Taken 769 | . 258 . . 177 334 Core 109 | . 18 . . 31 60 Absorbed by Shields . | . . . . . . Core Remaining (%) 90 | 100 . . . 80 . Volleys Fired 49 | . 23 . . 14 12 Largest 2 | . 2 . . 1 2 Hottest 70 | . 70 . . 35 70 Shots Fired 68 | . 30 . . 14 24 Gun . | . . . . . . Cannon 58 | . 22 . . 12 24 Launcher 10 | . 8 . . 2 . Special . | . . . . . . Kinetic 58 | . 22 . . 12 24 Thermal . | . . . . . . Explosive 10 | . 8 . . 2 . Electromagnetic . | . . . . . . Robot Hit Streak 13 | . 6 . . 9 13 Robot Miss Streak 2 | . 1 . . 1 2 Penetration Max . | . . . . . . Secondary Targets . | . . . . . . Shots Hit Robots 41 | . 14 . . 11 16 Core Hits 30 | . 17 . . 9 4 Critical Kills . | . . . . . . Critical Parts Destroyed . | . . . . . . Critical Strikes 2 | . 1 . . 1 . Blast 2 | . 1 . . 1 . Melee Attacks . | . . . . . . Impact . | . . . . . . Slashing . | . . . . . . Piercing . | . . . . . . Sneak Attacks . | . . . . . . Combat Hostiles . | . . . . . . Follow-up Attacks . | . . . . . . Damage Inflicted 1130 | . 504 . . 322 304 Guns . | . . . . . . Cannons 724 | . 235 . . 185 304 Explosions 392 | . 260 . . 132 . Melee . | . . . . . . Ramming 14 | . 9 . . 5 . Kinetic 724 | . 235 . . 185 304 Thermal . | . . . . . . Explosive 392 | . 260 . . 132 . Electromagnetic . | . . . . . . Impact . | . . . . . . Slashing . | . . . . . . Piercing . | . . . . . . Highest Corruption . | . . . . . . Average Corruption . | . . . . . . Corruption Purged . | . . . . . . Corruption Blocked . | . . . . . . Overload Shots . | . . . . . . Overflow Damage 4 | . . . . . 4 Projectiles 4 | . . . . . 4 Explosions . | . . . . . . Melee . | . . . . . . Knockbacks 8 | . . . . 4 4 Impact . | . . . . . . Kinetic 8 | . . . . 4 4 Secondary . | . . . . . . Self-Inflicted Damage 31 | . 11 . . 20 . Shots 2 | . 1 . . 1 . Rammed 3 | . 2 . . 1 . Targets Rammed 3 | . 2 . . 1 . Kicked . | . . . . . . Crushed . | . . . . . . Highest Temperature 51 | . 51 . . 12 3 Average Temperature 16 | . 17 . . 12 3 Received Heat Transfer 408 | . 123 . . 87 198 Siege Activations . | . . . . . . Robots Corrupted . | . . . . . . Combat Hostiles . | . . . . . . Parts Fried . | . . . . . . Impact Corruptions . | . . . . . . Robots Melted . | . . . . . . Combat Hostiles . | . . . . . . Parts Melted . | . . . . . . Heat Transferred . | . . . . . . Parts Sabotaged . | . . . . . . Parts Stolen . | . . . . . . Parts Stripped . | . . . . . . Power Chain Reactions . | . . . . . . Alert | -11 -10 -10 -10 -9 -8 ------- Run | Yrd Mat Min Exi Min Mat Peak Influence 213 | . 213 11 . 107 21 Initial 11 | . . 11 . . . Average 24 | . 29 11 . 20 16 Maximum Alert Level 1 | . 1 . . . . Low Security (%) 98 | . 97 100 . 100 100 Level 1 1 | . 2 . . . . Level 2 . | . . . . . . Level 3 . | . . . . . . Level 4 . | . . . . . . Level 5 . | . . . . . . High Security . | . . . . . . Max Security . | . . . . . . Squads Dispatched . | . . . . . . Investigation . | . . . . . . Extermination . | . . . . . . Reinforcement . | . . . . . . Assault . | . . . . . . Garrison . | . . . . . . Intercept . | . . . . . . Searches Triggered . | . . . . . . Construction Impeded . | . . . . . . Haulers Reinforced . | . . . . . . Active Scanning Responses . | . . . . . . Cargo Convoy Interrupts . | . . . . . . Stealth | -11 -10 -10 -10 -9 -8 --------- Run | Yrd Mat Min Exi Min Mat Distress Signals 1 | . 1 . . . . Communications Jammed . | . . . . . . Distress Signals . | . . . . . . Times Spotted 33 | . 24 . . 6 3 Peak Tracking Total 4 | . 4 . . 4 2 Tactical Retreats . | . . . . . . Traps | -11 -10 -10 -10 -9 -8 ------- Run | Yrd Mat Min Exi Min Mat Traps Triggered 1 | . 1 . . . . Indirectly . | . . . . . . Trap Hack Attempts . | . . . . . . Triggered . | . . . . . . Disarmed . | . . . . . . Reprogrammed . | . . . . . . Reused . | . . . . . . Traps Extracted . | . . . . . . Installed . | . . . . . . Triggered . | . . . . . . Machines | -11 -10 -10 -10 -9 -8 ---------- Run | Yrd Mat Min Exi Min Mat Machines Disabled 1 | . 1 . . . . Max in Single Turn 1 | . 1 . . . . Machines Repaired . | . . . . . . Machines Dismantled . | . . . . . . Machines Sabotaged . | . . . . . . Overloaded Fab Kills . | . . . . . . Hacking | -11 -10 -10 -10 -9 -8 --------- Run | Yrd Mat Min Exi Min Mat Machines Accessed 12 | . 10 . 2 . . Terminals 8 | . 8 . . . . Fabricators . | . . . . . . Repair Stations . | . . . . . . Recycling Units 2 | . 2 . . . . Scanalyzers . | . . . . . . Garrison Access . | . . . . . . Total Hacks 32 | . 30 . 2 . . Successful 19 | . 17 . 2 . . Failed 12 | . 12 . . . . Catastrophic 1 | . 1 . . . . Database Lockouts 1 | . 1 . . . . Manual 24 | . 23 . 1 . . Terminals 28 | . 28 . . . . Fabricators . | . . . . . . Repair Stations . | . . . . . . Recycling Units 2 | . 2 . . . . Scanalyzers . | . . . . . . Garrison Access . | . . . . . . Terminal Hacks 9 | . 7 . 2 . . Record 1 | . . . 1 . . Robot Analysis 2 | . 2 . . . . Prototype ID Bank 2 | . 2 . . . . Branch Access Points 1 | . 1 . . . . Unreport Threat 2 | . 2 . . . . Derelict Proto ID Bank 1 | . . . 1 . . Fabricator Hacks . | . . . . . . Repair Station Hacks . | . . . . . . Recycling Unit Hacks 2 | . 2 . . . . Retrieve Components 2 | . 2 . . . . Scanalyzer . | . . . . . . Garrison Access Hacks . | . . . . . . Unauthorized Hacks 8 | . 8 . . . . Terminals 8 | . 8 . . . . Botnet 8 | . 8 . . . . Fabricators . | . . . . . . Repair Stations . | . . . . . . Recycling Units . | . . . . . . Scanalyzers . | . . . . . . Garrison Access . | . . . . . . Data Cores Recovered . | . . . . . . Used . | . . . . . . Hacking Detections 6 | . 6 . . . . Full Trace Events . | . . . . . . Feedback Events . | . . . . . . Feedback Blocked . | . . . . . . Robot Schematics Acquired . | . . . . . . Robots Built . | . . . . . . Authchips . | . . . . . . Time . | . . . . . . Total Robot Build Rating . | . . . . . . Part Schematics Acquired . | . . . . . . Parts Built . | . . . . . . Authchips . | . . . . . . Time . | . . . . . . Total Part Build Rating . | . . . . . . Parts Repaired . | . . . . . . Time . | . . . . . . Parts Recycled . | . . . . . . Recycled Matter . | . . . . . . Retrieved Matter . | . . . . . . Retrieved Components 3 | . 3 . . . . Parts Scanalyzed . | . . . . . . Part Schematics Acquired . | . . . . . . Parts Damaged . | . . . . . . Bothacking | -11 -10 -10 -10 -9 -8 ------------ Run | Yrd Mat Min Exi Min Mat Used RIF Installer . | . . . . . . Robots Hacked . | . . . . . . Non-combat . | . . . . . . Combat . | . . . . . . Robot Hacks Applied . | . . . . . . Relay Couplers Released . | . . . . . . Fabnet Peak Effective % . | . . . . . . Robots Rewired . | . . . . . . Allies Hacked . | . . . . . . Hacks Repelled . | . . . . . . Allies | -11 -10 -10 -10 -9 -8 -------- Run | Yrd Mat Min Exi Min Mat Total Allies . | . . . . . . Largest Group . | . . . . . . Highest-Rated Group . | . . . . . . Highest-Rated Ally . | . . . . . . Total Orders . | . . . . . . Ally Attacks . | . . . . . . Total Damage . | . . . . . . Kills . | . . . . . . Allies Corrupted . | . . . . . . Allies Melted . | . . . . . . Intel | -11 -10 -10 -10 -9 -8 ------- Run | Yrd Mat Min Exi Min Mat Robot Analysis Total 2 | . 2 . . . . Derelict Logs Recovered 2 | . . . . 2 . Drone Launches . | . . . . . . Drone Recoveries . | . . . . . . Exploration | -11 -10 -10 -10 -9 -8 ------------- Run | Yrd Mat Min Exi Min Mat Turns Passed 5360 | . 2290 48 805 1907 310 Spaces Moved 1600 | 1 691 16 252 580 60 Core 1 | . 1 . . . . Treads 1586 | . 678 16 252 580 60 Legs 13 | 1 12 . . . . Wheels . | . . . . . . Hover . | . . . . . . Flight . | . . . . . . Fastest Speed 120 | 120 120 320 320 320 240 Average Speed 315 | 120 316 320 320 320 240 Slowest Speed 480 | 120 480 320 320 320 240 Overloaded Moves . | . . . . . . Propulsion Burnouts . | . . . . . . Robots Hopped . | . . . . . . Cave-ins Triggered . | . . . . . . Exploration Rate (%) 43 | 2 99 4 60 89 4 Regions Visited 5 Branch Regions 3 Pre-discovered Areas 2 | . . . 1 1 . Known Exits Taken 1 | . 1 . . . . Unknown Exits Taken 4 | 1 . 1 1 1 . Scrap Searched 3 | . . . . 3 . Spaces Dug . | . . . . . . Terrain Destroyed 66 | . 49 . . 17 . Melee . | . . . . . . Projectile . | . . . . . . AOE 66 | . 49 . . 17 . Terrain Rammed . | . . . . . . Walls Destroyed . | . . . . . . Machines Disabled . | . . . . . . Actions | -11 -10 -10 -10 -9 -8 --------- Run | Yrd Mat Min Exi Min Mat Total 1849 | . 759 15 252 619 204 Wait 150 | . 9 . . 18 123 Move 1595 | . 690 15 251 579 60 Hop . | . . . . . . Pick Up 23 | . 16 . 1 3 3 Fast Attach 7 | . 7 . . . . Attach 2 | . . . . . 2 Detach 3 | . 3 . . . . Swap 10 | . 7 . . 1 2 Drop 7 | . 2 . . 3 2 Fire 49 | . 23 . . 14 12 Melee . | . . . . . . Ram . | . . . . . . Kick . | . . . . . . Crush 3 | . 2 . . 1 . Escape Stasis . | . . . . . . Rewire . | . . . . . . Trap . | . . . . . . Miscellaneous . | . . . . . . Route ------- -11/Scrapyard -10/Materials (discovered 4 exits: [*Mat x3] / *Min) -10/Mines -10/Exiles -9/Mines -8/Materials (discovered 2 exits: Fac x2) History --------- Turn | Location | Event 1 | -11/Scrapyard | Discovered new exit (range 0) 1 | -11/Scrapyard | Entered Materials 306 | -10/Materials | Build established: Mutant 886 | -10/Materials | Discovered new exit (range 6) 1050 | -10/Materials | Central database locked down 1409 | -10/Materials | Discovered new exit (range 10) 1771 | -10/Materials | Discovered new exit (range 16) 1922 | -10/Materials | Identified exit to Mines 2291 | -10/Materials | Entered Mines 2317 | -10/Mines | Deemed a non-threat by the Exiles lab entrance 2320 | -10/Mines | Discovered new exit (range 5) 2339 | -10/Mines | Entered Exiles 2416 | -10/Exiles | Met 8R-AWN 2467 | -10/Exiles | Met EX-HEX 2599 | -10/Exiles | Met EX-DEC 2611 | -10/Exiles | Learned location of Zion (-7) 2666 | -10/Exiles | Met EX-BIN 2711 | -10/Exiles | Aligned with FarCom system 2714 | -10/Exiles | Given EX-Vault access code 2800 | -10/Exiles | Opened EX-Vault 2835 | -10/Exiles | Found Field Lobotomy Kit 2904 | -10/Exiles | Warned to stay clear of 0b10 Research branches 3102 | -10/Exiles | Discovered new exit (range 14) 3144 | -10/Exiles | Left Exiles lab with Field Lobotomy Kit 3144 | -10/Exiles | Entered Mines 3335 | -9/Mines | Found a hidden stash of uninstalled traps 3965 | -9/Mines | A weapon hastily lodged in a ceiling crevice suddenly fell to the ground 4793 | -9/Mines | Discovered new exit (range 14) 5007 | -9/Mines | Learned location of 2 exits from Materials 5051 | -9/Mines | Entered Materials 5051 | -8/Materials | Evolved 4 slots: Propulsion x2, Utility x2 5052 | -8/Materials | Identified exit to Factory 5361 | -8/Materials | Self-destructed Last Messages --------------- GOAL=ESCAPE 05051_ Receiving FarCom transmissions... Loading 2 Materials exits... 05068_ Acquired Datajack. 05105_ G-47 Trooper knocked back. 05108_ G-47 Trooper destroyed. 05113_ Acquired 36 matter. 05173_ Dropped Aluminum Leg. 05173_ Acquired Carbon-fiber Leg. 05176_ Dropped Aluminum Leg. 05176_ Acquired Carbon-fiber Leg. 05267_ R-06 Scavenger collects Aluminum Leg. 05306_ K-01 Serf collects debris. 05340_ K-01 Serf knocked back. 05343_ K-01 Serf suffers critical hit (Burn). 05343_ G-47 Trooper knocked back. 05349_ Lgt. Treads destroyed. 05355_ G-47 Trooper knocked back. 05358_ Destroyed Aluminum Leg. Map ----- +----------------------------------------------------+ | ?????????????????????????????????????????????????? | | ?????????????????????????????????????????????????? | | ?????????????????????????????????????????????????? | | ?????????????????????????????????????????????????? | | ?????????????????????????????????????????????????? | | ?????????????????????????????????????????????????? | | ?????????????????????????????????????????????????? | | ?????????????????????????????????????????????????? | | ?????????????????????????????????????????????????? | | ?????????????????????????????????????????????????? | | ?????????????????????????????????????????????????? | | ?????????????????????????????????????????????????? | | ?????????????????????????????????????????????????? | | ?????????????????????????????????????????????????? | | ?????????????????????????????????????????????????? | | ????????????????????###########??????????????????? | | ????????????????????# """ """ #??????????????????? | | ????????????????????# """ """ #??????????????????? | | ????????????????????# """ """ #??????????????????? | | ????????????????????# #??????????????????? | | ????????????????????# #??????????????????? | | ????????????????????# [ = !#??????????????????? | | ????????????????????# [ #??????????????????? | | ????????????????????# #??????????????????? | | ???????##################/#########??????????????? | | ???????# % mg% @ ????????? | | ???????# % %g a ?w??????? | | ???????#% %%% ????????? | | ???????####+####################+## ?????????? | | ????????# #???????????????????????"?????????? | | ????????# #?????????????????????????????????? | | ????????# """ #?????????????????????????????????? | | ????????# """ #?????????????????????????????????? | | ????????# """ #?????????????????????????????????? | | ????????# #?????????????????????????????????? | | ????????########?????????????????????????????????? | | ?????????????????????????????????????????????????? | | ?????????????????????????????????????????????????? | | ?????????????????????????????????????????????????? | | ?????????????????????????????????????????????????? | | ?????????????????????????????????????????????????? | | ?????????????????????????????????????????????????? | | ?????????????????????????????????????????????????? | | ?????????????????????????????????????????????????? | | ?????????????????????????????????????????????????? | | ?????????????????????????????????????????????????? | | ?????????????????????????????????????????????????? | | ?????????????????????????????????????????????????? | | ?????????????????????????????????????????????????? | | ?????????????????????????????????????????????????? | +----------------------------------------------------+ Best States ------------- Heat Dissipation 45 Energy Generation 14 Energy Capacity 250 Matter Stores 300 Matter Capacity 300 Sight Range 16 Terrain Scan Density 10 Evasion (%) 55 Recoil Reduction 4 Item Schematics ----------------- None Robot Schematics ------------------ None Fabricated ------------ Nothing Alien Tech Used ----------------- None Achievements -------------- None Challenges ------------ None Game ------ Seed HackingGodWand Manual? 0 Play Time 00:19:18 Cumulative 293.7 hours Start 2024.06.04 @ 15:18:46 End 2024.06.04 @ 15:36:16 Sessions 1 Manual Loads 0 Difficulty Rogue Special Mode None Game No. 172 Rogue 128 Adventurer 44 Explorer 0 Win Type - Total 2 Types 2/0/0/0/0/0/0/0/0 Lore% 58 Gallery% 63 Achievement% 58 Wizard Run 0 Options --------- Layout 2 ASCII 0 Keyboard 1 Movement Vi Keybinds 1 Fullscreen 2 Font 24/Smallcaps Map View 50x44 Zoom Use 0% Tactical HUD 1 Map Filters NONE Filters NONE Steam 1 RUN: e948e7c0-f168-4f47-a349-beb3a6f49221